bitfinex/quotes_BTCUSD_20250314
["timestamp","ask_amount","ask_price","bid_price","bid_amount"]
[1741951239666,0.552124,83292.0,83291.0,0.0003384]
[1741951239900,0.627124,83292.0,83291.0,0.0003384]
[1741951240558,0.672124,83292.0,83291.0,0.0003384]
[1741951241757,0.672124,83292.0,83291.0,0.0093384]
[1741951241981,0.672124,83292.0,83291.0,0.0053384]
[1741951242532,0.672124,83292.0,83291.0,0.0033384]
[1741951242533,0.68666485,83292.0,83291.0,0.0033384]
[1741951242700,0.68666485,83292.0,83291.0,0.0023384]
[1741951243071,0.68666485,83292.0,83291.0,0.0043384]
[1741951243418,0.68666485,83292.0,83291.0,0.0003384]
[1741951244621,0.68666485,83292.0,83291.0,4e-07]
[1741951245814,0.012011,83252.0,83250.0,0.02461362]
[1741951246075,0.012011,83256.0,83250.0,0.02461362]
[1741951246076,0.252241,83254.0,83250.0,0.02461362]
[1741951246188,0.240235,83252.0,83250.0,0.02461362]
[1741951247311,0.252248,83251.0,83247.0,0.00040955]
[1741951247511,0.240235,83252.0,83249.0,0.240242]
[1741951247782,0.240234,83254.0,83248.0,0.012012]
[1741951248130,0.240234,83254.0,83250.0,0.006]
[1741951248330,0.240228,83254.0,83251.0,0.240236]
[1741951248535,0.240228,83254.0,83250.0,0.25225]
[1741951248739,0.240225,83255.0,83250.0,0.012012]
[1741951248943,0.240232,83253.0,83250.0,0.012012]
[1741951249138,0.012009,83266.0,83257.0,0.240218]
[1741951249439,0.3,83264.0,83261.0,0.01201]
[1741951249627,0.0465,83278.0,83255.0,0.252231]
[1741951249628,0.0465,83287.0,83280.0,0.012007]
[1741951249830,0.0785,83291.0,83289.0,0.012006]
[1741951250065,0.0785,83300.0,83293.0,0.012005]
[1741951250270,0.0785,83300.0,83290.0,0.012006]
[1741951250271,0.240106,83297.0,83292.0,0.240118]
[1741951250382,0.012005,83292.0,83284.0,0.24014]
[1741951250585,0.240136,83286.0,83285.0,0.0252147]
[1741951250795,0.252139,83288.0,83283.0,0.240143]
[1741951251017,0.240136,83286.0,83283.0,0.240143]
[1741951251259,0.240139,83285.0,83284.0,0.01218754]
[1741951252122,0.012006,83288.0,83284.0,0.01218754]
[1741951252123,0.012005,83296.0,83288.0,0.24013]
[1741951252322,0.240125,83290.0,83289.0,0.05364705]
[1741951252881,0.240125,83290.0,83286.0,0.240134]
[1741951252882,0.240129,83289.0,83284.0,0.26833554]
[1741951253043,0.240131,83288.0,83284.0,0.27333554]
[1741951253244,0.240129,83289.0,83285.0,0.240137]
[1741951253663,0.0001692,83291.0,83289.0,0.240127]
[1741951253984,0.0001692,83291.0,83290.0,0.25213]
[1741951254218,0.0001692,83291.0,83290.0,0.33108935]
[1741951255431,0.0001692,83291.0,83290.0,0.33608935]
[1741951255633,0.0001692,83291.0,83290.0,0.34108935]
[1741951255997,0.0001692,83291.0,83290.0,0.34208935]
[1741951256815,0.0001692,83291.0,83290.0,0.39808935]
[1741951257014,0.0001692,83291.0,83290.0,0.35308935]
[1741951257236,0.0001692,83291.0,83290.0,0.58882935]
[1741951257638,0.0001692,83291.0,83290.0,0.57782935]
[1741951257860,0.0001692,83291.0,83290.0,0.38058935]
[1741951258040,0.0001692,83291.0,83290.0,0.57782935]
[1741951258883,0.0001692,83291.0,83290.0,0.58382935]
[1741951259619,0.0001692,83291.0,83290.0,0.44158935]
[1741951259821,0.0001692,83291.0,83290.0,0.57782935]
[1741951260023,0.0001692,83291.0,83290.0,0.57182935]
[1741951261089,0.0001692,83291.0,83290.0,0.57782935]
[1741951261402,0.0001692,83291.0,83290.0,0.58382935]
[1741951261603,0.0001692,83291.0,83290.0,0.58482935]
[1741951261858,0.0001692,83291.0,83290.0,0.57882935]
[1741951262069,0.0001692,83291.0,83290.0,0.44758935]
[1741951262249,0.0001692,83291.0,83290.0,0.58982935]
[1741951262444,0.0001692,83291.0,83290.0,0.57782935]
[1741951263069,0.0001692,83291.0,83290.0,0.58382935]
[1741951263791,0.0001692,83291.0,83290.0,0.57882935]
[1741951264357,0.0001692,83291.0,83290.0,0.58482935]
[1741951264582,2e-07,83291.0,83290.0,0.4501302]
[1741951264780,2e-07,83291.0,83290.0,0.4061302]
[1741951264985,2e-07,83291.0,83290.0,0.5923702]
[1741951265204,2e-07,83291.0,83290.0,0.5863702]
[1741951265527,2e-07,83291.0,83290.0,0.5983702]
[1741951265667,2e-07,83291.0,83290.0,0.5863702]
[1741951265873,2e-07,83291.0,83290.0,0.5867086]
[1741951266112,2e-07,83291.0,83290.0,0.5987086]
[1741951267005,2e-07,83291.0,83290.0,0.4624686]
[1741951267300,2e-07,83291.0,83290.0,0.5987086]
[1741951268455,2e-07,83291.0,83290.0,0.5487086]
[1741951268658,2e-07,83291.0,83290.0,0.5987086]
[1741951269009,2e-07,83291.0,83290.0,1.3950086]
[1741951269213,2e-07,83291.0,83290.0,1.2587686]
[1741951269559,2e-07,83291.0,83290.0,2.8949686]
[1741951269964,2e-07,83291.0,83290.0,2.8889686]
[1741951270405,2e-07,83291.0,83290.0,2.8899686]
[1741951270715,2e-07,83291.0,83290.0,2.8889686]
[1741951270905,2e-07,83291.0,83290.0,1.3794686]
[1741951271206,2e-07,83291.0,83290.0,1.2587686]
[1741951271352,2e-07,83291.0,83290.0,1.3889686]
[1741951271553,2e-07,83291.0,83290.0,1.3829686]
[1741951271784,2e-07,83291.0,83290.0,1.3889686]
[1741951271996,2e-07,83291.0,83290.0,1.2587686]
[1741951272191,2e-07,83291.0,83290.0,1.2527686]
[1741951272393,2e-07,83291.0,83290.0,1.3829686]
[1741951272612,2e-07,83291.0,83290.0,1.2467686]
[1741951272811,2e-07,83291.0,83290.0,1.3889686]
[1741951273220,2e-07,83291.0,83290.0,1.3949686]
[1741951275698,2e-07,83291.0,83290.0,1.2587686]
[1741951275900,2e-07,83291.0,83290.0,1.3949686]
[1741951276566,2e-07,83291.0,83290.0,1.2587686]
[1741951276920,2e-07,83291.0,83290.0,1.3449686]
[1741951277149,2e-07,83291.0,83290.0,1.3949686]
[1741951278404,2e-07,83291.0,83290.0,1.2587686]
[1741951279430,2e-07,83291.0,83290.0,1.3949686]
[1741951280576,2e-07,83291.0,83290.0,2.8949686]
[1741951281550,2e-07,83291.0,83290.0,2.7587686]
[1741951281749,2e-07,83291.0,83290.0,2.8949686]
[1741951283749,2e-07,83291.0,83290.0,2.7587686]
[1741951283967,2e-07,83291.0,83290.0,2.8949686]
[1741951284173,2e-07,83291.0,83290.0,2.7587686]
[1741951284372,2e-07,83291.0,83290.0,2.8949686]
[1741951286504,2e-07,83291.0,83290.0,2.7587686]
[1741951286709,2e-07,83291.0,83290.0,2.8949686]
[1741951286914,2e-07,83291.0,83290.0,0.39342775]
[1741951287515,2e-07,83291.0,83290.0,0.52962775]
[1741951287716,2e-07,83291.0,83290.0,0.34342775]
[1741951287922,2e-07,83291.0,83290.0,0.52362775]
[1741951288292,2e-07,83291.0,83290.0,0.47962775]
[1741951288493,2e-07,83291.0,83290.0,0.47362775]
[1741951288901,2e-07,83291.0,83290.0,0.46762775]
[1741951289104,2e-07,83291.0,83290.0,0.47962775]
[1741951290306,2e-07,83291.0,83290.0,0.52962775]
[1741951290541,2e-07,83291.0,83290.0,0.47962775]
[1741951290906,2e-07,83291.0,83290.0,0.34342775]
[1741951291081,2e-07,83291.0,83290.0,0.52962775]
[1741951291373,2e-07,83291.0,83290.0,0.47962775]
[1741951291609,2e-07,83291.0,83290.0,0.52962775]
[1741951292018,2e-07,83291.0,83290.0,0.39342775]
[1741951292156,2e-07,83291.0,83290.0,0.52962775]
[1741951292775,2e-07,83291.0,83290.0,0.39842775]
[1741951292966,2e-07,83291.0,83290.0,0.4129686]
[1741951293175,2e-07,83291.0,83290.0,0.5491686]
[1741951293374,2e-07,83291.0,83290.0,0.4129686]
[1741951293655,2e-07,83291.0,83290.0,0.58649032]
[1741951294286,2e-07,83291.0,83290.0,0.88649032]
[1741951294482,2e-07,83291.0,83290.0,1.54279131]
[1741951294725,2e-07,83291.0,83290.0,1.67899131]
[1741951295520,2e-07,83291.0,83290.0,1.66699131]
[1741951295751,2e-07,83291.0,83290.0,1.54279131]
[1741951295926,2e-07,83291.0,83290.0,1.42309032]
[1741951296222,2e-07,83291.0,83290.0,1.55329032]
[1741951296415,2e-07,83291.0,83290.0,2.05875032]
[1741951296709,2e-07,83291.0,83290.0,2.19495032]
[1741951296903,2e-07,83291.0,83290.0,1.63005032]
[1741951297134,2e-07,83291.0,83290.0,1.76625032]
[1741951297336,2e-07,83291.0,83290.0,1.76025032]
[1741951297522,2e-07,83291.0,83290.0,1.76625032]
[1741951298059,2e-07,83291.0,83290.0,1.75425032]
[1741951298472,2e-07,83291.0,83290.0,1.76625032]
[1741951298834,2e-07,83291.0,83290.0,1.76025032]
[1741951299591,2e-07,83291.0,83290.0,1.76625032]
[1741951301137,2e-07,83291.0,83290.0,1.00389032]
[1741951302028,2e-07,83291.0,83290.0,0.51694947]
[1741951302265,2e-07,83291.0,83290.0,0.56694947]
[1741951303044,2e-07,83291.0,83290.0,0.58649032]
[1741951303813,2e-07,83291.0,83290.0,0.59544393]
[1741951304016,2e-07,83291.0,83290.0,0.58344393]
[1741951304381,2e-07,83291.0,83290.0,0.45924393]
[1741951304743,2e-07,83291.0,83290.0,0.59544393]
[1741951304938,2e-07,83291.0,83290.0,0.58944393]
[1741951305159,2e-07,83291.0,83290.0,0.55812221]
[1741951305680,2e-07,83291.0,83290.0,0.45325874]
[1741951305884,2e-07,83291.0,83290.0,0.39825874]
[1741951306090,2e-07,83291.0,83290.0,0.50312221]
[1741951306300,2e-07,83291.0,83290.0,1.43585875]
[1741951306530,2e-07,83291.0,83290.0,1.29965875]
[1741951306709,2e-07,83291.0,83290.0,1.41435875]
[1741951306885,2e-07,83291.0,83290.0,1.55055875]
[1741951307086,2e-07,83291.0,83290.0,1.56255875]
[1741951307475,2e-07,83291.0,83290.0,1.55655875]
[1741951307691,2e-07,83291.0,83290.0,1.56255875]
[1741951308275,2e-07,83291.0,83290.0,1.55655875]
[1741951308631,2e-07,83291.0,83290.0,1.56255875]
[1741951308774,2e-07,83291.0,83290.0,1.42635875]
[1741951309108,2e-07,83291.0,83290.0,3.06255875]
[1741951309278,2e-07,83291.0,83290.0,3.06855875]
[1741951309475,2e-07,83291.0,83290.0,3.05655875]
[1741951309766,2e-07,83291.0,83290.0,3.17625974]
[1741951309975,3e-07,83322.0,83290.0,3.12625974]
[1741951310193,0.0001693,83351.0,83347.0,0.251958]
[1741951310468,0.0001693,83351.0,83348.0,0.251954]
[1741951311238,0.2401203,83351.0,83347.0,0.239959]
[1741951311445,0.01291977,83349.0,83342.0,0.239973]
[1741951311686,0.239966,83346.0,83342.0,0.239972]
[1741951311864,0.239965,83346.0,83343.0,0.239972]
[1741951312725,0.239967,83345.0,83342.0,0.251972]
[1741951312947,0.239969,83344.0,83340.0,0.239979]
[1741951313109,0.365469,83344.0,83343.0,0.004]
[1741951313607,0.677467,83344.0,83343.0,0.004]
[1741951314074,0.012001,83322.0,83316.0,0.252051]
[1741951314196,0.240059,83313.0,83307.0,0.012003]
[1741951314390,0.288735,83321.0,83317.0,0.240046]
[1741951314646,0.288735,83321.0,83318.0,0.0480105]
[1741951314949,0.240038,83320.0,83318.0,0.0480105]
[1741951315181,0.240041,83319.0,83318.0,0.0480105]
[1741951315878,0.252049,83317.0,83310.0,0.240064]
[1741951316092,0.012002,83315.0,83306.0,0.240076]
[1741951316327,0.012003,83310.0,83306.0,0.00120023]
[1741951316459,0.240064,83311.0,83307.0,0.240075]
[1741951316668,0.240064,83311.0,83308.0,0.05293713]
[1741951317067,0.0782,83314.0,83310.0,0.240067]
[1741951317273,0.0782,83314.0,83311.0,0.240064]
[1741951317497,0.0782,83314.0,83313.0,0.240058]
[1741951318097,0.0782,83314.0,83311.0,0.252067]
[1741951318282,0.0782,83314.0,83311.0,0.240064]
[1741951318283,0.318257,83314.0,83311.0,0.240064]
[1741951318662,0.0782,83314.0,83312.0,0.24006]
[1741951318891,0.240059,83313.0,83310.0,0.245066]
[1741951319083,0.0782,83314.0,83311.0,0.012003]
[1741951319325,0.0782,83314.0,83313.0,0.240058]
[1741951319472,0.0775,83320.0,83319.0,0.012002]
[1741951319671,0.0775,83326.0,83321.0,0.012001]
[1741951319873,0.0775,83326.0,83325.0,0.240024]
[1741951320079,0.0775,83326.0,83325.0,0.252025]
[1741951320299,0.0496,83331.0,83330.0,0.252009]
[1741951321074,0.0773,83332.0,83331.0,0.252006]
[1741951321487,0.240015,83329.0,83326.0,0.240021]
[1741951321688,0.252015,83329.0,83327.0,0.0508047]
[1741951322513,0.240017,83328.0,83327.0,0.0508047]
[1741951322926,0.252007,83331.0,83327.0,0.0508047]
[1741951324298,0.24012473,83333.0,83331.0,0.10498527]
[1741951324981,0.24012473,83333.0,83329.0,0.240006]
[1741951325161,0.24012473,83333.0,83331.0,0.002]
[1741951325364,0.00012273,83333.0,83331.0,0.002]
[1741951325570,0.24012473,83333.0,83331.0,0.002]
[1741951325762,0.252003,83332.0,83331.0,0.002]
[1741951326171,0.240003,83332.0,83331.0,0.002]
[1741951326605,0.240003,83332.0,83331.0,0.004]
[1741951326811,0.240003,83332.0,83329.0,0.240012]
[1741951326977,0.252015,83328.0,83327.0,0.0003382]
[1741951328419,0.252015,83328.0,83327.0,0.02957532]
[1741951328615,0.252015,83328.0,83327.0,0.0043382]
[1741951328832,0.252015,83328.0,83327.0,0.0073382]
[1741951330503,0.240009,83330.0,83327.0,0.0073382]
[1741951330731,0.240012,83329.0,83327.0,0.0073382]
[1741951330850,0.240015,83328.0,83327.0,0.0073382]
[1741951331369,0.240015,83328.0,83327.0,0.05567692]
[1741951331772,0.240015,83328.0,83327.0,0.05867692]
[1741951332315,0.252015,83328.0,83327.0,0.0063382]
[1741951332460,0.252015,83328.0,83327.0,0.0033382]
[1741951332881,0.252015,83328.0,83327.0,0.0063382]
[1741951333080,0.240015,83328.0,83327.0,0.0003382]
[1741951333281,0.00012273,83333.0,83332.0,0.240003]
[1741951333483,0.00012273,83333.0,83331.0,0.240005]
[1741951334185,0.00012273,83333.0,83332.0,0.252003]
[1741951334936,0.00012273,83333.0,83331.0,0.244005]
[1741951335351,0.24012473,83333.0,83331.0,0.004]
[1741951335547,0.24012473,83333.0,83332.0,0.07964103]
[1741951339975,0.25212473,83333.0,83332.0,0.008]
[1741951341166,0.24012273,83333.0,83332.0,0.008]
[1741951341365,0.25212273,83333.0,83332.0,0.008]
[1741951341612,0.25212273,83333.0,83332.0,0.0195214]
[1741951347963,0.25212273,83333.0,83332.0,0.06951086]
[1741951348161,0.25212273,83333.0,83332.0,0.0195214]
[1741951348610,0.00012273,83333.0,83332.0,0.0195214]
[1741951348812,0.00012273,83333.0,83332.0,0.2595244]
[1741951348988,0.00012273,83333.0,83332.0,0.2715244]
[1741951349225,0.00012273,83333.0,83332.0,0.34911276]
[1741951349507,0.00012273,83333.0,83332.0,0.42455136]
[1741951350304,0.00012273,83333.0,83332.0,0.42055136]
[1741951350506,0.00012273,83333.0,83332.0,0.42255136]
[1741951350702,0.00012273,83333.0,83332.0,0.42755136]
[1741951351108,0.00012273,83333.0,83332.0,0.34745136]
[1741951351339,0.00012273,83333.0,83332.0,0.35345136]
[1741951351489,0.00012273,83333.0,83332.0,0.10144836]
[1741951351686,0.24012273,83333.0,83332.0,0.10144836]
[1741951352053,0.00012273,83333.0,83332.0,0.10144836]
[1741951353083,0.00012273,83333.0,83332.0,0.34145136]
[1741951353392,0.00012273,83333.0,83332.0,0.10144836]
[1741951353595,0.24012273,83333.0,83332.0,0.10144836]
[1741951354241,0.25212273,83333.0,83332.0,0.02386]
[1741951355289,0.25212273,83333.0,83332.0,0.01786]
[1741951355497,0.25212273,83333.0,83332.0,0.01986]
[1741951356501,0.25212273,83333.0,83332.0,0.01386]
[1741951356703,0.25212273,83333.0,83332.0,0.01586]
[1741951356868,0.252,83333.0,83332.0,0.01586]
[1741951358389,0.239992,83337.0,83332.0,0.01586]
[1741951358705,0.24,83333.0,83332.0,0.01586]
[1741951359416,0.252,83333.0,83332.0,0.01386]
[1741951360424,0.252,83333.0,83332.0,0.01486]
[1741951360921,0.239998,83334.0,83332.0,0.01486]
[1741951361217,0.24,83333.0,83332.0,0.01486]
[1741951361595,0.24,83333.0,83332.0,0.01386]
[1741951361807,0.24,83333.0,83332.0,0.01586]
[1741951362436,0.252,83333.0,83332.0,0.01586]
[1741951362839,0.239995,83335.0,83332.0,0.01586]
[1741951363280,0.54,83333.0,83332.0,0.01586]
[1741951363409,0.552,83333.0,83332.0,0.01586]
[1741951363993,0.552,83333.0,83332.0,0.01386]
[1741951364650,0.552,83333.0,83332.0,0.01186]
[1741951364958,0.552,83333.0,83332.0,0.01386]
[1741951365316,0.552,83333.0,83332.0,0.01586]
[1741951365487,0.552,83333.0,83332.0,0.01186]
[1741951365695,0.552,83333.0,83332.0,0.01386]
[1741951366830,0.552,83333.0,83332.0,0.01586]
[1741951373063,0.3,83333.0,83332.0,0.01586]
[1741951373265,0.0121661,83348.0,83341.0,0.011998]
[1741951373421,0.0121661,83348.0,83339.0,0.011999]
[1741951373422,0.239968,83345.0,83340.0,0.239978]
[1741951373627,0.24079866,83345.0,83340.0,0.3231838]
[1741951373929,0.239977,83342.0,83340.0,0.0832058]
[1741951374125,0.3,83345.0,83341.0,0.011998]
[1741951374324,0.0001691,83348.0,83342.0,0.011998]
[1741951374567,0.25259396,83348.0,83343.0,0.239969]
[1741951374771,0.239962,83347.0,83343.0,0.239969]
[1741951375526,0.25259396,83348.0,83344.0,0.239969]
[1741951375870,0.23996,83347.0,83344.0,0.239969]
[1741951376315,0.011998,83347.0,83342.0,0.003]
[1741951376517,0.01263396,83348.0,83343.0,0.251969]
[1741951376727,0.25259096,83348.0,83343.0,0.251969]
[1741951377159,0.011998,83347.0,83343.0,0.003]
[1741951377357,0.239967,83345.0,83343.0,0.003]
[1741951377557,0.239968,83346.0,83343.0,0.239971]
[1741951377758,0.239967,83345.0,83343.0,0.003]
[1741951378024,0.239969,83344.0,83343.0,0.006]
[1741951378196,0.239969,83344.0,83343.0,0.003]
[1741951378400,0.239973,83343.0,83340.0,0.239978]
[1741951378715,0.239969,83344.0,83343.0,0.003]
[1741951378925,0.239975,83342.0,83341.0,0.05752937]
[1741951379100,0.239975,83342.0,83339.0,0.239975]
[1741951379101,0.239978,83341.0,83338.0,0.239986]
[1741951379327,0.239975,83342.0,83339.0,0.239981]
[1741951380428,0.25196,83347.0,83343.0,0.23997]
[1741951380630,0.239965,83346.0,83343.0,0.23997]
[1741951380796,0.011998,83344.0,83338.0,0.239986]
[1741951380992,0.011998,83342.0,83341.0,0.004]
[1741951381220,0.251973,83342.0,83341.0,0.004]
[1741951381583,0.239978,83341.0,83339.0,0.0389384]
[1741951381785,0.23998,83340.0,83339.0,0.0389384]
[1741951381984,0.239978,83341.0,83338.0,0.239985]
[1741951382308,0.239981,83340.0,83337.0,0.251988]
[1741951382515,0.239978,83341.0,83337.0,0.251988]
[1741951382713,0.239978,83341.0,83338.0,0.239985]
[1741951383241,0.251973,83342.0,83338.0,0.239985]
[1741951383600,0.239978,83341.0,83338.0,0.239985]
[1741951384162,0.239978,83341.0,83339.0,0.0869364]
[1741951384484,0.239978,83341.0,83338.0,0.005]
[1741951384485,0.251982,83339.0,83338.0,0.005]
[1741951385042,0.251982,83339.0,83338.0,0.01]
[1741951385263,0.251996,83335.0,83332.0,0.01186]
[1741951385465,0.239998,83334.0,83332.0,0.01186]
[1741951385624,0.239998,83334.0,83332.0,0.08614636]
[1741951386382,0.239991,83337.0,83334.0,0.239995]
[1741951386554,0.239991,83337.0,83332.0,0.33814836]
[1741951386770,0.239994,83336.0,83332.0,0.33814836]
[1741951386962,0.239994,83336.0,83333.0,0.239998]
[1741951387168,60.0,83596.0,83335.0,0.239989]
[1741951387169,0.011998,83345.0,83335.0,0.239989]
[1741951387380,0.0001693,83351.0,83340.0,0.334177]
[1741951387381,0.0001693,83341.0,83340.0,0.334177]
[1741951387581,0.0001693,83341.0,83340.0,0.0822]
[1741951387879,0.23998,83340.0,83338.0,0.001]
[1741951388180,0.2521453,83341.0,83338.0,0.240984]
[1741951388353,0.2521453,83341.0,83339.0,0.0851164]
[1741951388756,0.2521453,83341.0,83340.0,0.004]
[1741951389062,0.23998,83340.0,83339.0,0.0851164]
[1741951389460,0.2521453,83341.0,83339.0,0.0851164]
[1741951389815,0.2401473,83341.0,83339.0,0.3250984]
[1741951389932,0.0001693,83341.0,83340.0,0.33630764]
[1741951390128,0.0001693,83341.0,83340.0,0.09632764]
[1741951390373,0.0001693,83341.0,83340.0,0.33630764]
[1741951390775,0.0001693,83341.0,83340.0,0.34830664]
[1741951391723,0.0001693,83341.0,83340.0,0.34430664]
[1741951391902,0.0001693,83341.0,83340.0,0.34830664]
[1741951392751,0.0001693,83341.0,83340.0,0.35330664]
[1741951393112,0.0001693,83341.0,83340.0,0.34930664]
[1741951393314,0.0001693,83341.0,83340.0,0.35430664]
[1741951396922,0.0001693,83341.0,83340.0,0.42980664]
[1741951397124,0.0001693,83341.0,83340.0,0.56592664]
[1741951397321,0.0001693,83341.0,83340.0,0.42980664]
[1741951397622,0.0001693,83341.0,83340.0,0.56592664]
[1741951397765,0.0001693,83341.0,83340.0,0.56092664]
[1741951397961,0.0001693,83341.0,83340.0,0.41980664]
[1741951398203,0.0001693,83341.0,83340.0,0.47650664]
[1741951398403,0.0001693,83341.0,83340.0,0.62716749]
[1741951399090,0.0001693,83341.0,83340.0,0.48504749]
[1741951399295,0.0001693,83341.0,83340.0,0.62116749]
[1741951399517,0.0001693,83341.0,83340.0,0.49104749]
[1741951399662,0.0001693,83341.0,83340.0,0.48504749]
[1741951399880,0.0001693,83341.0,83340.0,0.1212]
[1741951400080,0.0001693,83341.0,83340.0,0.37437875]
[1741951400386,0.0001693,83341.0,83340.0,0.379179]
[1741951400619,4e-07,83348.0,83347.0,0.378558]
[1741951401018,4e-07,83348.0,83347.0,0.39309885]
[1741951401252,4e-07,83348.0,83347.0,0.50729814]
[1741951401943,4e-07,83348.0,83347.0,0.51329814]
[1741951402858,4e-07,83348.0,83347.0,0.51929814]
[1741951403079,4e-07,83348.0,83347.0,0.50475729]
[1741951403266,4e-07,83348.0,83347.0,0.49875729]
[1741951403473,0.2519544,83348.0,83347.0,0.006]
[1741951403672,0.2519544,83348.0,83347.0,0.012]
[1741951404190,0.2519544,83348.0,83343.0,0.239971]
[1741951404395,0.239972,83344.0,83340.0,0.0763]
[1741951404550,0.011998,83346.0,83338.0,0.0003386]
[1741951404755,0.251961,83347.0,83343.0,0.239971]
[1741951404953,0.2399604,83348.0,83347.0,0.006]
[1741951405153,4e-07,83348.0,83347.0,0.24596]
[1741951405357,4e-07,83348.0,83347.0,0.23996]
[1741951405580,4e-07,83348.0,83347.0,0.251958]
[1741951405785,4e-07,83348.0,83347.0,0.3599434]
[1741951406551,4e-07,83348.0,83347.0,0.1079854]
[1741951406915,4e-07,83348.0,83347.0,0.33615775]
[1741951407107,4e-07,83348.0,83347.0,0.374658]
[1741951407269,4e-07,83348.0,83347.0,0.378658]
[1741951407462,4e-07,83348.0,83347.0,0.382658]
[1741951408009,4e-07,83348.0,83347.0,0.386658]
[1741951408249,4e-07,83348.0,83347.0,0.4901158]
[1741951408419,4e-07,83348.0,83347.0,0.1924558]
[1741951408644,4e-07,83348.0,83347.0,0.1984558]
[1741951408788,4e-07,83348.0,83347.0,0.2024558]
[1741951409005,4e-07,83348.0,83347.0,0.1964558]
[1741951409200,4e-07,83348.0,83347.0,0.4544138]
[1741951410674,4e-07,83348.0,83347.0,0.4444138]
[1741951411041,4e-07,83348.0,83347.0,0.4384158]
[1741951411247,4e-07,83348.0,83347.0,0.1984558]
[1741951411560,4e-07,83348.0,83347.0,0.1974558]
[1741951411764,4e-07,83348.0,83347.0,0.4424158]
[1741951411981,4e-07,83348.0,83347.0,0.4544138]
[1741951413111,4e-07,83348.0,83347.0,0.4424158]
[1741951413329,4e-07,83348.0,83347.0,0.4544138]
[1741951414071,4e-07,83348.0,83347.0,0.2024558]
[1741951415879,0.2399574,83348.0,83347.0,0.2024558]
[1741951416456,4e-07,83348.0,83347.0,0.4424158]
[1741951417483,0.2399574,83348.0,83347.0,0.2024558]
[1741951417684,4e-07,83348.0,83347.0,0.4424158]
[1741951418284,4e-07,83348.0,83347.0,0.2024558]
[1741951419043,0.2399574,83348.0,83347.0,0.2024558]
[1741951419254,4e-07,83348.0,83347.0,0.4424158]
[1741951419762,4e-07,83348.0,83347.0,0.4544138]
[1741951421678,4e-07,83348.0,83347.0,0.4424158]
[1741951422293,0.2399574,83348.0,83347.0,0.2024558]
[1741951423368,4e-07,83348.0,83347.0,0.2024558]
[1741951423565,4e-07,83348.0,83347.0,0.338958]
[1741951425186,4e-07,83348.0,83347.0,0.3392966]
[1741951427586,4e-07,83348.0,83347.0,0.3272986]
[1741951427989,4e-07,83348.0,83347.0,0.3392966]
[1741951431683,4e-07,83348.0,83347.0,0.3463377]
[1741951431840,4e-07,83348.0,83347.0,0.46629859]
[1741951432678,4e-07,83348.0,83347.0,0.46129859]
[1741951433462,4e-07,83348.0,83347.0,0.45629859]
[1741951433665,4e-07,83348.0,83347.0,0.46129859]
[1741951433850,4e-07,83348.0,83347.0,0.46629859]
[1741951434416,4e-07,83348.0,83347.0,0.46129859]
[1741951434853,4e-07,83348.0,83347.0,0.46729859]
[1741951435035,4e-07,83348.0,83347.0,0.46229859]
[1741951435259,4e-07,83348.0,83347.0,0.46829859]
[1741951441833,4e-07,83348.0,83347.0,1.96829859]
[1741951443302,4e-07,83348.0,83347.0,0.46829859]
[1741951443748,4e-07,83348.0,83347.0,1.98283944]
[1741951444479,4e-07,83348.0,83347.0,2.11887944]
[1741951444684,4e-07,83348.0,83347.0,2.11287944]
[1741951445049,4e-07,83348.0,83347.0,0.61287944]
[1741951445391,4e-07,83348.0,83347.0,0.61887944]
[1741951446905,4e-07,83348.0,83347.0,0.67237944]
[1741951447314,6e-07,83349.0,83348.0,0.35329485]
[1741951447504,6e-07,83349.0,83348.0,1.97325574]
[1741951449006,0.0003388,83358.0,83348.0,1.97325574]
[1741951449007,7e-07,83358.0,83355.0,0.244937]
[1741951449183,9e-07,83362.0,83361.0,0.34795685]
[1741951449441,9e-07,83362.0,83361.0,0.48395685]
[1741951449642,0.00012358,83362.0,83361.0,0.60391774]
[1741951450228,0.00012358,83362.0,83361.0,0.59891774]
[1741951451978,0.00083066,83386.0,83382.0,0.011992]
[1741951452171,0.00083066,83386.0,83380.0,0.239865]
[1741951452335,0.239856,83384.0,83381.0,0.29812556]
[1741951452515,0.239851,83385.0,83381.0,0.29812556]
[1741951453178,0.0124,83386.0,83384.0,0.239854]
[1741951453384,0.0124,83386.0,83385.0,0.251843]
[1741951453693,0.00040884,83386.0,83385.0,0.251843]
[1741951454443,0.01270522,83386.0,83384.0,0.239852]
[1741951454605,0.00040884,83386.0,83385.0,0.003]
[1741951455450,0.00040884,83386.0,83385.0,0.006]
[1741951456381,0.00040884,83386.0,83385.0,0.003]
[1741951457322,0.00040884,83386.0,83385.0,0.006]
[1741951458090,0.24025684,83386.0,83385.0,0.006]
[1741951458280,0.00040884,83386.0,83385.0,0.006]
[1741951458781,0.00040884,83386.0,83385.0,0.245851]
[1741951458982,0.00040884,83386.0,83385.0,0.257843]
[1741951459543,0.00040884,83386.0,83385.0,0.3363952]
[1741951459750,0.00057814,83386.0,83385.0,0.3363952]
[1741951460837,0.00057814,83386.0,83385.0,0.0845522]
[1741951461270,0.00057814,83386.0,83385.0,0.242851]
[1741951461733,0.00057814,83386.0,83385.0,0.246851]
[1741951461952,0.00057814,83386.0,83385.0,0.007]
[1741951462293,0.00057814,83386.0,83385.0,0.004]
[1741951462485,0.24042614,83386.0,83385.0,0.004]
[1741951462709,0.24042614,83386.0,83385.0,0.008]
[1741951463262,0.24042614,83386.0,83385.0,0.004]
[1741951463394,0.24042614,83386.0,83385.0,0.008]
[1741951464066,0.3817488,83386.0,83385.0,0.008]
[1741951464239,0.38091814,83386.0,83385.0,0.008]
[1741951464803,0.30191814,83386.0,83385.0,0.004]
[1741951465202,0.30191814,83386.0,83385.0,0.006]
[1741951465407,0.30191814,83386.0,83385.0,0.002]
[1741951465813,0.30191814,83386.0,83385.0,0.004]
[1741951466891,0.25241814,83386.0,83385.0,0.004]
[1741951470972,0.24042614,83386.0,83385.0,0.004]
[1741951471173,0.00057814,83386.0,83385.0,0.2682367]
[1741951471413,0.2520672,83390.0,83387.0,0.239845]